Cogmind - Beta 15 @@@ ROGUE MODE // 2025.09.24 @ 17:49:51 Player: Anting Result: Destroyed by AT-44H(j) with Overtuned Pulse Rifle Performance ------------- Evolutions (0) 0 Regions Visited (3) 600 Robots Destroyed (27) 135 Value Destroyed (622) 622 Prototype IDs (4) 80 Alien Tech Used (0) 0 Bonus (-41) -41 TOTAL SCORE: 1396 Bonus ------- Friendly Fire -41 Cogmind --------- Core Integrity 0/250 Matter 233/300 Energy 95/100 System Corruption 0% Temperature Warm (134) Movement Treading (560) Ox5 Location -8/Recycling Parts ------- > --- POWER (1) -------- (None) > --- PROPULSION (2) --- Light Treads Light Treads > --- UTILITY (2) ------ Humpback > --- WEAPON (2) ------- Improved Light Cannon Battle Cannon > --- INVENTORY (35) --- Subdweller Power Source Subdweller Monowheel Improved Hover Unit Improved Hover Unit Improved Hover Unit Improved Hover Unit Large Storage Unit Subdweller Optics Improved Terrain Scanner Terrain Scan Processor Melee Analysis Suite Hardened Light Armor Plating Hardened Light Armor Plating Scrap Shield Subdweller Laser Subdweller Beam Cannon Battle Rifle Subdweller Machine Gun Makeshift Axe Peak State ------------ > --- POWER ------------ Subdweller Power Source > --- PROPULSION ------- Light Treads Light Treads > --- UTILITY ---------- Humpback > --- WEAPON ----------- Improved Light Cannon Battle Cannon > --- INVENTORY -------- Subdweller Power Source Subdweller Monowheel Improved Hover Unit Improved Hover Unit Improved Hover Unit Improved Hover Unit Large Storage Unit Subdweller Optics Improved Terrain Scanner Seismic Detector Hardened Light Armor Plating Hardened Light Armor Plating Scrap Shield Subdweller Laser Subdweller Beam Cannon Battle Rifle Subdweller Machine Gun Improved Light Cannon Makeshift Axe SUBCON Basin [Rating: 32] Favorites ----------- Power Subdweller Power Source Engine Subdweller Power Source Propulsion Light Treads Treads Light Treads Utility Humpback Device Seismic Detector Storage Humpback Protection Hardened Light Armor Plating Weapon Improved Light Cannon Energy Gun Small Laser Ballistic Gun Light Assault Rifle Ballistic Cannon Improved Light Cannon Launcher Subdweller Shrapnel Launcher Build | -11 -10 -10 -8 ------- Run | Yrd Mat Sub Rec Slots Evolved . | . . . . Power . | . . . . Propulsion . | . . . . Utility . | . . . . Weapon . | . . . . Parts Attached 23 | 8 6 7 2 Power 4 | 2 1 1 . Engine 4 | 2 1 1 . Core . | . . . . Reactor . | . . . . Propulsion 6 | 2 . 2 2 Treads 6 | 2 . 2 2 Leg . | . . . . Wheel . | . . . . Hover . | . . . . Flight . | . . . . Utility 6 | 2 3 1 . Device 1 | 1 . . . Storage 3 | 1 1 1 . Processor . | . . . . Hackware . | . . . . Protection 2 | . 2 . . Artifact . | . . . . Weapon 7 | 2 2 3 . Energy Gun 1 | 1 . . . Energy Cannon . | . . . . Ballistic Gun 1 | 1 . . . Ballistic Cannon 4 | . 2 2 . Launcher 1 | . . 1 . Special Weapon . | . . . . Impact Weapon . | . . . . Slashing Weapon . | . . . . Piercing Weapon . | . . . . Special Melee Weapon . | . . . . Unidentified Prototypes . | . . . . Parts Lost 6 | . 1 2 3 Power 3 | . 1 1 1 Propulsion 3 | . . 1 2 Utility . | . . . . Weapon . | . . . . Highest Loss Streak 2 | . 1 2 2 To Critical Strikes . | . . . . Average Backups 16 | 3 14 15 19 Power . | . . . 1 Propulsion 5 | 1 6 4 5 Utility 6 | . 5 5 7 Weapon 4 | . 1 5 5 Tool/Special . | . . . . Unused Backups 23 | . 2 3 18 Power 1 | . . . 1 Propulsion 8 | . 1 2 5 Utility 7 | . . 1 6 Weapon 7 | . 1 . 6 Tool/Special . | . . . . Average Slot Usage (%) 88 | . 95 91 84 Engine 12 | . 10 11 14 Treads 27 | . 28 28 27 Device 2 | . 12 2 . Storage 13 | . 14 13 14 Protection 2 | . 1 6 . Ballistic Cannon 27 | . 26 27 28 Peak Build Rating 32 | 7 12 32 32 Average Rating 22 | 5 10 14 29 On Entrance 12 | . 7 12 32 Naked Turns . | . . . . Heaviest Build 212 | 13 36 212 212 Greatest Support 40 | 40 40 40 40 Greatest Overweight (x) 70 | . . 5 70 Average Overweight (x) 2 | . . . 5 Largest Inventory Capacity 35 | 8 15 35 35 Average Capacity 27 | 7 14 22 35 Most Carried 35 | 5 15 35 35 Average Carried 25 | 3 14 17 32 Final Capacity 35 | 8 15 35 35 Final Carried 35 | 5 15 35 20 Class Distribution -------------------- 65% | Hauler-Mutant 34% | Mutant Dominant Class ---------------- Mutant | -10/Materials Mutant | -10/Subcaves Hauler-Mutant | -8/Recycling Resources | -11 -10 -10 -8 ----------- Run | Yrd Mat Sub Rec Matter Collected 1134 | 242 284 271 337 Remotely . | . . . . Salvage Created 668 | 24 77 188 379 Parts 63 | 2 7 30 24 Haulers Intercepted 1 | . 1 . . Recyclers Shooed 1 | . . . 1 Parts Field Recycled . | . . . . Retrieved Matter . | . . . . Parts Self-Destructed 13 | . . 13 . Prevented . | . . . . Kills | -11 -10 -10 -8 ------- Run | Yrd Mat Sub Rec Combat Hostiles Destroyed 19 | . 4 11 4 Cannons 16 | . 4 8 4 AOE 3 | . . 3 . Classes Destroyed 11 | 1 3 3 4 Builder 2 | . . . 2 Tunneler 1 | 1 . . . Hauler 1 | . 1 . . Recycler 2 | . . . 2 Turret 2 | . . 2 . Swarmer 9 | . 3 6 . Grunt 1 | . 1 . . Sentry 3 | . . . 3 Subdweller 5 | . . 5 . Scientist 1 | . . 1 . Scrapper 1 | . . . 1 Best Kill Streak 5 | 1 4 5 3 Combat Bots Only 4 | . 4 3 2 Max Kills in Single Turn 3 | 1 1 3 2 Gunslinging . | . . . . Exploded 3 | . . 3 . Melee . | . . . . Uniques/NPCs Destroyed . | . . . . Combat | -11 -10 -10 -8 -------- Run | Yrd Mat Sub Rec Hostile Shots Fired 169 | . 9 80 80 Missed 48 | . 2 28 18 Hits 121 | . 7 52 62 Projectile 121 | . 7 52 62 Critical Strikes 4 | . . . 4 Damage Taken 1841 | . 168 667 1006 Core 261 | . 26 80 155 Absorbed by Shields . | . . . . Core Remaining (%) 100 | 100 . . . Volleys Fired 101 | 7 29 49 16 Largest 2 | 2 2 2 2 Hottest 66 | 60 66 66 66 Shots Fired 180 | 14 46 88 32 Gun 14 | 14 . . . Cannon 161 | . 46 83 32 Launcher 5 | . . 5 . Special . | . . . . Kinetic 173 | 7 46 88 32 Thermal 7 | 7 . . . Explosive . | . . . . Electromagnetic . | . . . . Robot Hit Streak 12 | 6 12 12 9 Robot Miss Streak 4 | 1 4 2 1 Penetration Max . | . . . . Secondary Targets . | . . . . Shots Hit Robots 94 | 12 13 44 25 Core Hits 41 | 2 6 23 10 Critical Kills . | . . . . Critical Parts Destroyed . | . . . . Critical Strikes 4 | . 2 1 1 Blast 4 | . 2 1 1 Melee Attacks . | . . . . Impact . | . . . . Slashing . | . . . . Piercing . | . . . . Sneak Attacks . | . . . . Combat Hostiles . | . . . . Follow-up Attacks . | . . . . Damage Inflicted 2280 | 115 264 1269 632 Guns 115 | 115 . . . Cannons 1760 | . 264 923 573 Explosions 346 | . . 346 . Melee . | . . . . Ramming 59 | . . . 59 Kinetic 2155 | 49 264 1269 573 Thermal 66 | 66 . . . Explosive . | . . . . Electromagnetic . | . . . . Impact . | . . . . Slashing . | . . . . Piercing . | . . . . Highest Corruption . | . . . . Average Corruption . | . . . . Corruption Purged . | . . . . Corruption Blocked . | . . . . Overload Shots . | . . . . Overflow Damage 25 | . . 25 . Projectiles 14 | . . 14 . Explosions 11 | . . 11 . Melee . | . . . . Knockbacks 22 | . 6 12 4 Impact . | . . . . Kinetic 21 | . 5 12 4 Secondary 1 | . 1 . . Self-Inflicted Damage 39 | . . 39 . Shots 1 | . . 1 . Rammed 6 | . . . 6 Targets Rammed 7 | . . . 7 Kicked . | . . . . Crushed 1 | . . . 1 Highest Temperature 125 | 40 63 4 125 Average Temperature 25 | 25 17 4 31 Received Heat Transfer 749 | . 33 240 476 Siege Activations . | . . . . Martial Activations . | . . . . Shielding Activations . | . . . . Robots Disrupted . | . . . . Combat Hostiles . | . . . . Robots Corrupted . | . . . . Combat Hostiles . | . . . . Parts Fried . | . . . . Impact Corruptions . | . . . . Robots Melted . | . . . . Combat Hostiles . | . . . . Parts Melted 1 | . . . 1 Heat Transferred 150 | 150 . . . Parts Sabotaged . | . . . . Parts Stolen . | . . . . Parts Stripped . | . . . . Power Chain Reactions . | . . . . Alert | -11 -10 -10 -8 ------- Run | Yrd Mat Sub Rec Maximum Alert Level . | . . . . Low Security (%) 100 | 100 100 . 100 Level 1 . | . . . . Level 2 . | . . . . Level 3 . | . . . . Level 4 . | . . . . Level 5 . | . . . . High Security . | . . . . Max Security . | . . . . Peak Influence 110 | . 110 . 45 Initial . | . . . . Average 2 | . 6 . 1 Influence Increases 553 | 5 188 200 160 Destroy 0b10 Robot/C 300 | . 80 160 60 Destroy 0b10 Robot/NC 30 | 5 5 . 20 Destroy Leader 32 | . 22 10 . Successful Hack 35 | . . . 35 Select Force Hacks 30 | . . . 30 Disable Machine 15 | . . . 15 Destroy Structure 6 | . 6 . . Lose Combat Pursuer 105 | . 75 30 . Influence Decreases 549 | 5 84 304 156 Entered New Map 51 | . . 51 . Time Decay 473 | 5 84 253 131 Lost Part 25 | . . . 25 Squads Dispatched 1 | . 1 . . Investigation 1 | . 1 . . Extermination . | . . . . Reinforcement . | . . . . Assault . | . . . . Garrison . | . . . . Intercept . | . . . . Searches Triggered . | . . . . Construction Impeded . | . . . . Haulers Reinforced . | . . . . Active Scanning Responses . | . . . . Cargo Convoy Interrupts . | . . . . Stealth | -11 -10 -10 -8 --------- Run | Yrd Mat Sub Rec Distress Signals 2 | . 2 . . Communications Jammed . | . . . . Distress Signals . | . . . . Times Spotted 28 | . 9 12 7 Peak Tracking Total 5 | . 5 3 3 Tactical Retreats 5 | . 3 2 . Traps | -11 -10 -10 -8 ------- Run | Yrd Mat Sub Rec Traps Triggered 2 | . 2 . . Indirectly . | . . . . Trap Hack Attempts . | . . . . Triggered . | . . . . Disarmed . | . . . . Reprogrammed . | . . . . Reused . | . . . . Traps Extracted . | . . . . Installed . | . . . . Triggered . | . . . . Machines | -11 -10 -10 -8 ---------- Run | Yrd Mat Sub Rec Machines Disabled 5 | . . 4 1 Max in Single Turn 3 | . . 3 1 Machines Repaired . | . . . . Machines Dismantled . | . . . . Machines Sabotaged . | . . . . Overloaded Fab Kills . | . . . . Hacking | -11 -10 -10 -8 --------- Run | Yrd Mat Sub Rec Machines Accessed 11 | . 1 2 8 Terminals 7 | . 1 . 6 Fabricators . | . . . . Repair Stations . | . . . . Recycling Units 1 | . . . 1 Scanalyzers . | . . . . Garrison Access . | . . . . Total Hacks 26 | . 3 3 20 Successful 14 | . . 3 11 Failed 12 | . 3 . 9 Catastrophic 3 | . 1 . 2 Database Lockouts . | . . . . Manual 12 | . . . 12 Terminals 21 | . 3 . 18 Fabricators . | . . . . Repair Stations . | . . . . Recycling Units 1 | . . . 1 Scanalyzers . | . . . . Garrison Access . | . . . . Terminal Hacks 10 | . . 3 7 Record 2 | . . 1 1 Part Schematic 1 | . . . 1 Prototype ID Bank 2 | . . . 2 Open Door 1 | . . 1 . Terminal Index 1 | . . . 1 Security Status 1 | . . . 1 Zone Layout 1 | . . . 1 Release Object 1 | . . 1 . Fabricator Hacks . | . . . . Repair Station Hacks . | . . . . Recycling Unit Hacks . | . . . . Scanalyzer . | . . . . Garrison Access Hacks . | . . . . Unauthorized Hacks 4 | . . . 4 Terminals 3 | . . . 3 Botnet 3 | . . . 3 Fabricators . | . . . . Repair Stations . | . . . . Recycling Units 1 | . . . 1 Tunnel 1 | . . . 1 Scanalyzers . | . . . . Garrison Access . | . . . . Data Cores Recovered . | . . . . Used . | . . . . Hacking Detections 6 | . 1 . 5 Full Trace Events 3 | . 1 . 2 Feedback Events . | . . . . Feedback Blocked . | . . . . Robot Schematics Acquired . | . . . . Robots Built . | . . . . Authchips . | . . . . Time . | . . . . Total Robot Build Rating . | . . . . Part Schematics Acquired 1 | . . . 1 Parts Built . | . . . . Authchips . | . . . . Time . | . . . . Total Part Build Rating . | . . . . Parts Repaired . | . . . . Time . | . . . . Parts Recycled . | . . . . Recycled Matter . | . . . . Retrieved Matter . | . . . . Retrieved Components . | . . . . Parts Scanalyzed . | . . . . Part Schematics Acquired . | . . . . Parts Damaged . | . . . . Bothacking | -11 -10 -10 -8 ------------ Run | Yrd Mat Sub Rec Used RIF Installer . | . . . . Robots Hacked . | . . . . Non-combat . | . . . . Combat . | . . . . Robot Hacks Applied . | . . . . Relay Couplers Released . | . . . . Fabnet Peak Effective % . | . . . . Robots Rewired . | . . . . Allies Hacked . | . . . . Hacks Repelled . | . . . . Allies | -11 -10 -10 -8 -------- Run | Yrd Mat Sub Rec Total Allies . | . . . . Largest Group . | . . . . Highest-Rated Group . | . . . . Highest-Rated Ally . | . . . . Total Orders . | . . . . Ally Attacks . | . . . . Total Damage . | . . . . Kills . | . . . . Allies Corrupted . | . . . . Allies Melted . | . . . . Intel | -11 -10 -10 -8 ------- Run | Yrd Mat Sub Rec Active Infowar (turns) 1267 | 54 907 306 . Seismic 1267 | 54 907 306 . Robot Analysis Total . | . . . . Derelict Logs Recovered 1 | . . 1 . Drone Launches . | . . . . Drone Recoveries . | . . . . Exploration | -11 -10 -10 -8 ------------- Run | Yrd Mat Sub Rec Turns Passed 6725 | 134 1004 1887 3700 Spaces Moved 1773 | 63 314 765 631 Core 4 | 2 . . 2 Treads 1769 | 61 314 765 629 Legs . | . . . . Wheels . | . . . . Hover . | . . . . Flight . | . . . . Fastest Speed 50 | 50 160 160 560 Average Speed 332 | 156 160 222 570 Slowest Speed 3550 | 160 160 560 3550 Overloaded Moves . | . . . . Propulsion Burnouts . | . . . . Robots Hopped . | . . . . Potential Cave-ins . | . . . . Cave-ins Triggered . | . . . . Exploration Rate (%) 44 | 5 56 34 83 Regions Visited 3 Branch Regions 2 Pre-discovered Areas 2 | . . 1 1 Known Exits Taken . | . . . . Unknown Exits Taken 3 | 1 1 1 . Scrap Searched 6 | . . 6 . Spaces Dug 2 | . 2 . . Terrain Destroyed 67 | . 6 61 . Melee . | . . . . Projectile 6 | . 6 . . AOE 61 | . . 61 . Terrain Rammed . | . . . . Walls Destroyed . | . . . . Machines Disabled . | . . . . Actions | -11 -10 -10 -8 --------- Run | Yrd Mat Sub Rec Total 2389 | 82 769 868 670 Wait 413 | . 403 10 . Move 1770 | 62 313 764 631 Hop . | . . . . Pick Up 47 | 5 12 24 6 Fast Attach 14 | 7 3 2 2 Attach 1 | . . 1 . Detach . | . . . . Swap 12 | 1 4 7 . Drop 23 | . 5 11 7 Fire 101 | 7 29 49 16 Melee . | . . . . Ram . | . . . . Kick . | . . . . Crush 7 | . . . 7 Escape Stasis . | . . . . Rewire . | . . . . Trap . | . . . . Miscellaneous 1 | . . . 1 Route ------- -11/Scrapyard -10/Materials (discovered 3 exits: [*Mat] / [*Min] / *Sub) -10/Subcaves (discovered 2 exits: [*Mat] / *Rec) -8/Recycling (discovered 1 exit: [*Fac]) History --------- Turn | Location | Event 10 | -11/Scrapyard | Discovered new exit (range 14) 135 | -11/Scrapyard | Entered Materials 310 | -10/Materials | Build established: Mutant 846 | -10/Materials | Discovered new exit (range 3) 969 | -10/Materials | Discovered new exit (range 15) 1108 | -10/Materials | Discovered new exit (range 8) 1139 | -10/Materials | Entered Subcaves 1140 | -10/Subcaves | Approached by a straggling Scientist 1142 | -10/Subcaves | A swath of the cavern ceiling suddenly collapsed 1168 | -10/Subcaves | Learned location of Storage (-8) 1714 | -10/Subcaves | Shifting Twisted Machinery released Shrapnel Trap 1722 | -10/Subcaves | Shifting Twisted Machinery released Spk. Treads 1783 | -10/Subcaves | Discovered new exit (range 9) 2093 | -10/Subcaves | Discovered new exit (range 15) 2649 | -10/Subcaves | Build established: Hauler-Mutant 2796 | -10/Subcaves | Found SUBCON Basin 3026 | -10/Subcaves | Entered Recycling 3076 | -8/Recycling | Core integrity fell below 50% 3095 | -8/Recycling | Core integrity fell below 20% 4348 | -8/Recycling | Discovered new exit (range 16) 5958 | -8/Recycling | Scanned before Scraplab entrance 6036 | -8/Recycling | Entered Scraplab 6082 | -8/Recycling | Discovered new exit (range 3) 6704 | -8/Recycling | Released subatomizers from SUBCON Basin 6704 | -8/Recycling | Angered Scraplab inhabitants 6726 | -8/Recycling | Destroyed by AT-44H(j) with Overtuned Pulse Rifle Last Messages --------------- 06439_ Acquired SUBCON Basin. 06457_ Dropped SUBCON Basin. 06459_ TH-CS5(c) is busy at their terminal. 06492_ 7R-LYG(c) is busy at their terminal. 06515_ TH-CS5(c) is busy at their terminal. 06578_ 7R-LYG(c) is busy at their terminal. 06618_ TH-CS5(c) is busy at their terminal. 06656_ 7R-LYG(c) is busy at their terminal. 06704_ Released subatomizers from SUBCON Basin. 06706_ Critical hit (Burn: +50). 06708_ AT-44H(j): "Defend the Scraplab!" 06708_ Mak. Microdissipator Network melted. 06708_ CD-4N8(j) destroyed. 06711_ Supplies damaged. 06714_ AT-44H(j) knocked back. 06714_ TH-CS5(c) destroyed. 06721_ Sub. Power Source destroyed. 06723_ AT-44H(j) knocked back. 06723_ Machine disabled. 06724_ Critical hit (Burn: +50). Map ----- +----------------------------------------------------+ | ??????????????????????????????? | | ??????????????????????????????? | | ??????????????????????????????? | | ??????????????????????????????? | | ??????????????????????????????? | | ??????????????????????????????? | | ??????????????????????????????? | | ??????????????????????????????? | | ??????????????????????????????? | | ??????????????????????????????? | | ??????????????????????????????? | | ???????###?????######?????????? | | ######## ###???# #?????????? | | #???# #??###????? | | ##### #### ##???? | | + + # #???? | | ##### ##### #???? | | ############???# #???# #???? | | ???????????????# #???# #???? | | ??#####????????######???# #???? | | ??# #????####?????#####j####? | | ??# < ##### # #?????#" %c* "#? | | ??# # #?????#"&!=% ""#? | | #?# # #?????#" % "#? | | ??# # #?????#"" =X"#? | | ??# + #?????#"& @% "#? | | ??# # #?????#" =""#? | | ??# # #?????#"X "#? | | ??# + #?????#" % ###? | | ??# # #?????# " #<#? | | ??# # #?????# " " j #? | | ### # #?????##########? | | #]] # #???????????????? | | # ] ##+######???????????????? | | #]] #????????????????????? | | ### #????????????????????? | | ### #????????????????????? | | #????????????????????? | | #????????????????????? | | #????????????????????? | | ####+#######??????????????????? | | ! #??????????????????? | | ! !#??????????????????? | | ! #??????????????????? | | !! !! #??????????????????? | | #??????????????????? | | !#??????????????????? | | !! ! !#??????????????????? | | #??????????????????? | | #??????????????????? | +----------------------------------------------------+ Best States ------------- Heat Dissipation 25 Energy Generation 10 Energy Capacity 250 Matter Stores 300 Matter Capacity 300 Sight Range 16 Terrain Scan Density 10 Armor Coverage 150 Evasion (%) 40 Recoil Reduction 2 Item Schematics ----------------- Lgt. Deuterium Engine | -8/Recycling | Hacked Robot Schematics ------------------ None Fabricated ------------ Nothing Repaired ---------- Nothing Alien Tech Used ----------------- None Achievements -------------- None Challenges ------------ None Game ------ Seed HardenedArmorPit Manual? 0 Play Time 00:17:42 Cumulative 299.8 hours Start 2025.09.24 @ 17:28:43 End 2025.09.24 @ 17:49:51 Sessions 1 Manual Loads 0 Difficulty Rogue Special Mode None Game No. 214 Rogue 214 Adventurer 0 Explorer 0 Win Type - Total 18 Types 9/0/5/1/1/0/0/1/0/1 Lore% 80 Gallery% 76 Achievement% 77 Wizard Run 0 Options --------- Layout 1 ASCII 0 Keyboard 0 Movement Mouse Keybinds 0 Fullscreen 2 Font 24/Smallcaps Map View 50x35 Zoom Use 0% Tactical HUD 1 Map Filters NONE Filters NONE Steam 1 RUN: b14d7d7c-afd3-4d71-969f-f30f201d9b5c